[Event "*** Titled Tuesday Blitz"]
[Site "Chess.com"]
[Date "2019.08.06"]
[Round "6"]
[White "WarlordX"]
[Black "Everyfishknows"]
[Result "1/2-1/2"]
[WhiteElo "2520"]
[BlackElo "2405"]
[TimeControl "180+2"]
[EndTime "14:21:48 PDT"]
[Termination "Game drawn by repetition"]

1. d4 {[%clk 0:03:01.9]} 1... Nf6 {[%clk 0:03:00.8]} 2. c4 {[%clk 0:03:02.8]}
2... e6 {[%clk 0:03:02]} 3. Nf3 {[%clk 0:03:04.3]} 3... Bb4+ {[%clk 0:03:02.9]}
4. Nbd2 {[%clk 0:03:05.2]} 4... O-O {[%clk 0:03:03.3]} 5. g3 {[%clk 0:03:06.4]}
5... d5 {[%clk 0:02:59.8]} 6. Bg2 {[%clk 0:03:07.4]} 6... c6 {[%clk 0:03:00.4]}
7. O-O {[%clk 0:03:08]} 7... Nbd7 {[%clk 0:02:58]} 8. a3 {[%clk 0:03:08.5]} 8...
Be7 {[%clk 0:02:58.8]} 9. b3 {[%clk 0:03:04.2]} 9... b6 {[%clk 0:02:57.7]} 10.
Bb2 {[%clk 0:03:03.2]} 10... Bb7 {[%clk 0:02:57.3]} 11. Rc1 {[%clk 0:03:02]}
11... Rc8 {[%clk 0:02:54.5]} 12. Re1 {[%clk 0:03:02.4]} 12... c5 {[%clk
0:02:54.8]} 13. e3 {[%clk 0:03:00.3]} 13... cxd4 {[%clk 0:02:53.3]} 14. Nxd4
{[%clk 0:02:57.7]} 14... Nc5 {[%clk 0:02:45.6]} 15. Qe2 {[%clk 0:02:51.4]} 15...
dxc4 {[%clk 0:02:43.6]} 16. Bxb7 {[%clk 0:02:44.2]} 16... Nxb7 {[%clk 0:02:43]}
17. Nxc4 {[%clk 0:02:42]} 17... Nc5 {[%clk 0:02:38.7]} 18. Red1 {[%clk
0:02:42.8]} 18... Qe8 {[%clk 0:02:33]} 19. a4 {[%clk 0:02:21.5]} 19... Nce4
{[%clk 0:02:28.3]} 20. Nb5 {[%clk 0:02:16.8]} 20... a6 {[%clk 0:02:10.1]} 21.
Bxf6 {[%clk 0:02:17.2]} 21... axb5 {[%clk 0:01:37.1]} 22. Bxe7 {[%clk
0:02:17.2]} 22... Qxe7 {[%clk 0:01:30.1]} 23. axb5 {[%clk 0:02:17.9]} 23... Qb4
{[%clk 0:01:12.9]} 24. Nxb6 {[%clk 0:02:11.8]} 24... Nc3 {[%clk 0:01:05.6]} 25.
Qe1 {[%clk 0:02:07.1]} 25... Qxb5 {[%clk 0:00:16.8]} 26. Nxc8 {[%clk 0:02:04.1]}
26... Ne2+ {[%clk 0:00:17.8]} 27. Kg2 {[%clk 0:01:55.7]} 27... Qb7+ {[%clk
0:00:06.4]} 28. Kh3 {[%clk 0:01:41.2]} 28... Nxc1 {[%clk 0:00:04.3]} 29. Ne7+
{[%clk 0:01:42]} 29... Qxe7 {[%clk 0:00:04.8]} 30. Rxc1 {[%clk 0:01:43.6]} 30...
g6 {[%clk 0:00:04]} 31. b4 {[%clk 0:01:37.2]} 31... Rb8 {[%clk 0:00:04.4]} 32.
Rb1 {[%clk 0:01:38.7]} 32... Rb5 {[%clk 0:00:03.4]} 33. Qc3 {[%clk 0:01:40.1]}
33... Qb7 {[%clk 0:00:04.5]} 34. e4 {[%clk 0:01:13.8]} 34... Qxe4 {[%clk
0:00:02.4]} 35. Qc8+ {[%clk 0:01:11.2]} 35... Kg7 {[%clk 0:00:03.9]} 36. Qc3+
{[%clk 0:01:12.6]} 36... Kg8 {[%clk 0:00:04.9]} 37. Qc8+ {[%clk 0:01:13.3]}
37... Kg7 {[%clk 0:00:06.5]} 38. Qc3+ {[%clk 0:01:14.9]} 38... Kg8 {[%clk
0:00:08]} 1/2-1/2

[Event "*** Titled Tuesday Blitz"]
[Site "Chess.com"]
[Date "2019.08.06"]
[Round "6"]
[White "nitpicker"]
[Black "ClockworkKubrick"]
[Result "1-0"]
[WhiteElo "2241"]
[BlackElo "2169"]
[TimeControl "180+2"]
[EndTime "14:21:48 PDT"]
[Termination "nitpicker won by resignation"]

1. e4 {[%clk 0:03:00.4]} 1... d6 {[%clk 0:03:01.9]} 2. d4 {[%clk 0:03:00.3]}
2... Nf6 {[%clk 0:03:03.6]} 3. Nc3 {[%clk 0:03:01.2]} 3... g6 {[%clk 0:03:05.3]}
4. h3 {[%clk 0:03:02.3]} 4... Bg7 {[%clk 0:03:06.3]} 5. Nge2 {[%clk 0:03:03.3]}
5... O-O {[%clk 0:03:07.9]} 6. Be3 {[%clk 0:03:03.4]} 6... c6 {[%clk 0:03:06.9]}
7. a4 {[%clk 0:03:03]} 7... e5 {[%clk 0:03:07.3]} 8. g4 {[%clk 0:03:03.6]} 8...
Nbd7 {[%clk 0:03:07.8]} 9. Bg2 {[%clk 0:03:04.4]} 9... a6 {[%clk 0:03:06.3]} 10.
O-O {[%clk 0:02:59.9]} 10... Rb8 {[%clk 0:03:07.5]} 11. a5 {[%clk 0:02:51.3]}
11... b5 {[%clk 0:03:08.5]} 12. axb6 {[%clk 0:02:32.1]} 12... Nxb6 {[%clk
0:03:09.1]} 13. b3 {[%clk 0:02:26.8]} 13... Nbd7 {[%clk 0:02:57.9]} 14. Ng3
{[%clk 0:02:22.8]} 14... c5 {[%clk 0:02:57.6]} 15. dxc5 {[%clk 0:02:16.3]} 15...
dxc5 {[%clk 0:02:57.3]} 16. g5 {[%clk 0:02:11.5]} 16... Ne8 {[%clk 0:02:52.8]}
17. Bxc5 {[%clk 0:02:07.6]} 17... Bb7 {[%clk 0:02:48.4]} 18. Bxf8 {[%clk
0:02:05.9]} 18... Bxf8 {[%clk 0:02:49.2]} 19. h4 {[%clk 0:01:58]} 19... Nc7
{[%clk 0:02:46.5]} 20. Nd5 {[%clk 0:01:56]} 20... Ne6 {[%clk 0:02:45.8]} 21. Qg4
{[%clk 0:01:44]} 21... Bg7 {[%clk 0:02:34.5]} 22. Rad1 {[%clk 0:01:40.1]} 22...
Qe8 {[%clk 0:02:13.3]} 23. Bh3 {[%clk 0:01:29.1]} 23... Ndc5 {[%clk 0:02:01.9]}
24. Ne2 {[%clk 0:01:10.3]} 24... Bxd5 {[%clk 0:01:45]} 25. exd5 {[%clk
0:01:09.7]} 25... Nd4 {[%clk 0:01:45.9]} 26. Nxd4 {[%clk 0:01:08.1]} 26... exd4
{[%clk 0:01:47.1]} 27. Rfe1 {[%clk 0:01:03.6]} 27... Qd8 {[%clk 0:01:48.3]} 28.
Bg2 {[%clk 0:01:00.2]} 28... Qd6 {[%clk 0:01:39]} 29. Qg3 {[%clk 0:00:54.3]}
29... Qd8 {[%clk 0:01:38.5]} 30. d6 {[%clk 0:00:47.7]} 30... Nd7 {[%clk
0:01:39.5]} 31. Bd5 {[%clk 0:00:44]} 31... Rb6 {[%clk 0:01:31.5]} 32. Qf3 {[%clk
0:00:41.8]} 32... Ne5 {[%clk 0:01:29.4]} 33. Rxe5 {[%clk 0:00:42.5]} 33... Bxe5
{[%clk 0:01:30.5]} 34. Qxf7+ {[%clk 0:00:43.3]} 34... Kh8 {[%clk 0:01:31.6]} 35.
d7 {[%clk 0:00:43.3]} 35... Rb8 {[%clk 0:01:15]} 36. Re1 {[%clk 0:00:43.3]}
36... Qc7 {[%clk 0:01:09.5]} 37. Qe8+ {[%clk 0:00:39.6]} 37... Kg7 {[%clk
0:01:05.4]} 38. Rxe5 {[%clk 0:00:34.2]} 1-0

[Event "*** Titled Tuesday Blitz"]
[Site "Chess.com"]
[Date "2019.08.06"]
[Round "6"]
[White "Kubas1010"]
[Black "WPWPWP-2015"]
[Result "0-1"]
[WhiteElo "2562"]
[BlackElo "2424"]
[TimeControl "180+2"]
[EndTime "14:21:53 PDT"]
[Termination "WPWPWP-2015 won by resignation"]

1. d4 {[%clk 0:03:01.9]} 1... Nf6 {[%clk 0:02:58.1]} 2. c4 {[%clk 0:03:03.1]}
2... e6 {[%clk 0:02:58.3]} 3. Nf3 {[%clk 0:03:03.8]} 3... b6 {[%clk 0:02:56.2]}
4. a3 {[%clk 0:03:00.7]} 4... Bb7 {[%clk 0:02:55]} 5. Bf4 {[%clk 0:03:01.1]}
5... Be7 {[%clk 0:02:54.8]} 6. Nc3 {[%clk 0:03:00.4]} 6... O-O {[%clk
0:02:54.9]} 7. d5 {[%clk 0:02:58.5]} 7... exd5 {[%clk 0:02:50.8]} 8. cxd5 {[%clk
0:02:59.5]} 8... d6 {[%clk 0:02:51.7]} 9. e4 {[%clk 0:02:59.5]} 9... Nbd7 {[%clk
0:02:52.3]} 10. Bd3 {[%clk 0:02:54.1]} 10... Ng4 {[%clk 0:02:51]} 11. O-O {[%clk
0:02:53]} 11... Bf6 {[%clk 0:02:49.2]} 12. Rc1 {[%clk 0:02:37.6]} 12... a6
{[%clk 0:02:43.3]} 13. Bb1 {[%clk 0:02:13.6]} 13... g6 {[%clk 0:02:39.2]} 14.
Nd4 {[%clk 0:02:13.3]} 14... Nge5 {[%clk 0:02:31.1]} 15. Bh6 {[%clk 0:02:12.5]}
15... Re8 {[%clk 0:02:31.3]} 16. Be3 {[%clk 0:01:59]} 16... Nc4 {[%clk
0:02:24.7]} 17. Re1 {[%clk 0:01:41]} 17... Nxe3 {[%clk 0:02:18.4]} 18. Rxe3
{[%clk 0:01:35.4]} 18... Bg5 {[%clk 0:02:17.5]} 19. Qe2 {[%clk 0:01:28.2]} 19...
Nf6 {[%clk 0:02:02.3]} 20. Rd1 {[%clk 0:01:02.4]} 20... Bxe3 {[%clk 0:02:00.2]}
21. Qxe3 {[%clk 0:01:03.8]} 21... Nxd5 {[%clk 0:01:58.2]} 22. Nxd5 {[%clk
0:00:59.9]} 22... Bxd5 {[%clk 0:01:58.2]} 23. Nf5 {[%clk 0:00:46.5]} 23... Be6
{[%clk 0:01:36.8]} 24. Qc3 {[%clk 0:00:32.3]} 24... Bxf5 {[%clk 0:01:35.5]} 25.
exf5 {[%clk 0:00:33.3]} 25... Qe7 {[%clk 0:01:21.2]} 26. h3 {[%clk 0:00:20.8]}
26... Rac8 {[%clk 0:01:10]} 27. Qg3 {[%clk 0:00:10.7]} 27... Qf6 {[%clk
0:01:05.5]} 28. b4 {[%clk 0:00:09.2]} 28... Re5 {[%clk 0:01:03.3]} 29. h4 {[%clk
0:00:08.1]} 29... Rce8 {[%clk 0:01:02.5]} 30. f4 {[%clk 0:00:07.4]} 30... Re3
{[%clk 0:00:59.5]} 31. Qf2 {[%clk 0:00:08.6]} 31... Re2 {[%clk 0:00:58.3]} 32.
Qg3 {[%clk 0:00:07.8]} 32... R8e3 {[%clk 0:00:57.6]} 33. Qg5 {[%clk 0:00:08.8]}
33... Qxg5 {[%clk 0:00:56.7]} 34. hxg5 {[%clk 0:00:10.7]} 34... Re1+ {[%clk
0:00:57.6]} 0-1

[Event "*** Titled Tuesday Blitz"]
[Site "Chess.com"]
[Date "2019.08.06"]
[Round "6"]
[White "Nathan_Filgueiras"]
[Black "GremioPrudente"]
[Result "0-1"]
[WhiteElo "2216"]
[BlackElo "2237"]
[TimeControl "180+2"]
[EndTime "14:22:08 PDT"]
[Termination "GremioPrudente won by resignation"]

1. e4 {[%clk 0:03:01.9]} 1... e6 {[%clk 0:03:00.8]} 2. d4 {[%clk 0:03:02.5]}
2... d5 {[%clk 0:03:02.3]} 3. Nd2 {[%clk 0:02:55.5]} 3... Nf6 {[%clk 0:03:02.8]}
4. e5 {[%clk 0:02:56.6]} 4... Nfd7 {[%clk 0:03:03.8]} 5. Bd3 {[%clk 0:02:56.3]}
5... c5 {[%clk 0:03:05.2]} 6. c3 {[%clk 0:02:57.8]} 6... Nc6 {[%clk 0:03:06.2]}
7. Ne2 {[%clk 0:02:42.4]} 7... Qb6 {[%clk 0:03:07]} 8. O-O {[%clk 0:02:36.6]}
8... cxd4 {[%clk 0:03:07.4]} 9. cxd4 {[%clk 0:02:34]} 9... Nxd4 {[%clk
0:02:36.1]} 10. Nxd4 {[%clk 0:02:29.1]} 10... Qxd4 {[%clk 0:02:37.1]} 11. Nb3
{[%clk 0:02:19.5]} 11... Qxe5 {[%clk 0:02:30.7]} 12. Re1 {[%clk 0:02:02.5]}
12... Qf6 {[%clk 0:02:23]} 13. Bb5 {[%clk 0:01:18.8]} 13... Be7 {[%clk
0:02:15.2]} 14. Bd2 {[%clk 0:01:01]} 14... O-O {[%clk 0:02:07.7]} 15. Bc3 {[%clk
0:01:00.7]} 15... Qh6 {[%clk 0:02:05.7]} 16. Nd4 {[%clk 0:00:37.6]} 16... Bd6
{[%clk 0:01:58.3]} 17. h3 {[%clk 0:00:32.8]} 17... a6 {[%clk 0:01:52.5]} 18. Ba4
{[%clk 0:00:25.3]} 18... b5 {[%clk 0:01:37.9]} 19. Bc2 {[%clk 0:00:25.6]} 19...
Bb7 {[%clk 0:01:39.3]} 20. Nf3 {[%clk 0:00:11.5]} 20... Rac8 {[%clk 0:01:40]}
21. Rc1 {[%clk 0:00:09.8]} 21... Nc5 {[%clk 0:01:30.2]} 22. Bb1 {[%clk
0:00:10.6]} 22... Na4 {[%clk 0:01:21.1]} 23. Bd4 {[%clk 0:00:07.7]} 23... Rxc1
{[%clk 0:01:07.8]} 24. Qxc1 {[%clk 0:00:09.3]} 24... Qxc1 {[%clk 0:01:09]} 25.
Rxc1 {[%clk 0:00:10.8]} 25... Rc8 {[%clk 0:01:10.8]} 26. Rxc8+ {[%clk
0:00:11.7]} 26... Bxc8 {[%clk 0:01:12]} 27. Ne5 {[%clk 0:00:11.8]} 27... f6
{[%clk 0:01:01.2]} 28. Nd3 {[%clk 0:00:12.4]} 28... e5 {[%clk 0:01:02.4]} 29.
Be3 {[%clk 0:00:11.5]} 29... e4 {[%clk 0:00:50.6]} 30. Nf4 {[%clk 0:00:11.9]}
30... Bb7 {[%clk 0:00:51.9]} 31. b3 {[%clk 0:00:08.9]} 31... Nc3 {[%clk
0:00:46.3]} 32. Bc2 {[%clk 0:00:09.5]} 32... Bxf4 {[%clk 0:00:39.8]} 0-1

[Event "*** Titled Tuesday Blitz"]
[Site "Chess.com"]
[Date "2019.08.06"]
[Round "6"]
[White "Komissarov_alex"]
[Black "oezs95"]
[Result "0-1"]
[WhiteElo "2169"]
[BlackElo "2368"]
[TimeControl "180+2"]
[EndTime "14:22:11 PDT"]
[Termination "oezs95 won on time"]

1. d4 {[%clk 0:03:01.9]} 1... Nf6 {[%clk 0:03:00]} 2. Nf3 {[%clk 0:03:00.3]}
2... e6 {[%clk 0:03:01.1]} 3. e3 {[%clk 0:02:59.8]} 3... c5 {[%clk 0:03:02]} 4.
c3 {[%clk 0:02:58.6]} 4... b6 {[%clk 0:03:02.8]} 5. Nbd2 {[%clk 0:02:57.4]} 5...
Bb7 {[%clk 0:03:03.9]} 6. Bd3 {[%clk 0:02:57.8]} 6... cxd4 {[%clk 0:03:04.8]} 7.
exd4 {[%clk 0:02:56.4]} 7... Be7 {[%clk 0:03:05.1]} 8. O-O {[%clk 0:02:48.9]}
8... O-O {[%clk 0:03:06.6]} 9. Re1 {[%clk 0:02:48.4]} 9... d6 {[%clk 0:03:07.6]}
10. Ne4 {[%clk 0:02:44.6]} 10... Nbd7 {[%clk 0:03:08.3]} 11. Bf4 {[%clk
0:02:36.7]} 11... Qc7 {[%clk 0:03:05.1]} 12. h3 {[%clk 0:02:21.1]} 12... Rfe8
{[%clk 0:03:05]} 13. Neg5 {[%clk 0:02:13.1]} 13... Bf8 {[%clk 0:03:04.3]} 14.
Qc2 {[%clk 0:01:51.1]} 14... h6 {[%clk 0:02:59.1]} 15. Nh7 {[%clk 0:01:43.2]}
15... Bxf3 {[%clk 0:02:48.9]} 16. Nxf8 {[%clk 0:01:36.4]} 16... Nxf8 {[%clk
0:02:09.3]} 17. gxf3 {[%clk 0:01:34.9]} 17... Nd5 {[%clk 0:02:10.8]} 18. Bg3
{[%clk 0:01:25.2]} 18... f5 {[%clk 0:02:08]} 19. c4 {[%clk 0:01:17.9]} 19... Nb4
{[%clk 0:02:04.7]} 20. Qd2 {[%clk 0:01:14]} 20... Nxd3 {[%clk 0:02:04.7]} 21.
Qxd3 {[%clk 0:01:14.7]} 21... Rad8 {[%clk 0:01:50.4]} 22. Rad1 {[%clk
0:01:01.5]} 22... Qf7 {[%clk 0:01:50.1]} 23. h4 {[%clk 0:00:47.4]} 23... Ng6
{[%clk 0:01:35.6]} 24. Kf1 {[%clk 0:00:28]} 24... f4 {[%clk 0:01:20.4]} 25. h5
{[%clk 0:00:27.2]} 25... Nh8 {[%clk 0:01:04.2]} 26. Bh2 {[%clk 0:00:19.8]} 26...
Rf8 {[%clk 0:00:56.9]} 27. Ke2 {[%clk 0:00:15.3]} 27... Qxh5 {[%clk 0:00:54.8]}
28. Rh1 {[%clk 0:00:14.7]} 28... Qf5 {[%clk 0:00:48.5]} 29. Rdg1 {[%clk
0:00:09.9]} 29... Qxd3+ {[%clk 0:00:39.7]} 30. Kxd3 {[%clk 0:00:09.5]} 30... g5
{[%clk 0:00:40.7]} 0-1

[Event "*** Titled Tuesday Blitz"]
[Site "Chess.com"]
[Date "2019.08.06"]
[Round "6"]
[White "ChessyInstinct"]
[Black "Blitzking642"]
[Result "0-1"]
[WhiteElo "2372"]
[BlackElo "2399"]
[TimeControl "180+2"]
[EndTime "14:22:18 PDT"]
[Termination "Blitzking642 won on time"]

1. d4 {[%clk 0:03:01.9]} 1... Nf6 {[%clk 0:03:00.2]} 2. c4 {[%clk 0:03:03.3]}
2... g6 {[%clk 0:03:01.1]} 3. Nc3 {[%clk 0:03:04]} 3... d5 {[%clk 0:03:02.3]} 4.
Bg5 {[%clk 0:02:53.1]} 4... Bg7 {[%clk 0:03:00.5]} 5. Bxf6 {[%clk 0:02:53.7]}
5... Bxf6 {[%clk 0:03:00.9]} 6. cxd5 {[%clk 0:02:55.6]} 6... O-O {[%clk
0:02:57.5]} 7. Nf3 {[%clk 0:02:55.3]} 7... Bg7 {[%clk 0:02:35]} 8. e3 {[%clk
0:02:51.7]} 8... Nd7 {[%clk 0:02:35.3]} 9. Bc4 {[%clk 0:02:47.9]} 9... a6 {[%clk
0:02:29.7]} 10. a4 {[%clk 0:02:47.4]} 10... b6 {[%clk 0:02:29.1]} 11. O-O {[%clk
0:02:46.4]} 11... Bb7 {[%clk 0:02:30.5]} 12. e4 {[%clk 0:02:46.6]} 12... Nf6
{[%clk 0:02:29.7]} 13. Qb3 {[%clk 0:02:44.6]} 13... Nh5 {[%clk 0:02:22.7]} 14.
Rad1 {[%clk 0:02:23.1]} 14... Qc8 {[%clk 0:02:17.1]} 15. Ne5 {[%clk 0:02:21]}
15... Nf4 {[%clk 0:02:08.4]} 16. Ne2 {[%clk 0:01:50.3]} 16... Nxe2+ {[%clk
0:01:57.1]} 17. Bxe2 {[%clk 0:01:52.2]} 17... Qd8 {[%clk 0:01:41.3]} 18. f4
{[%clk 0:01:31.9]} 18... Qd6 {[%clk 0:01:33.5]} 19. Nc4 {[%clk 0:01:22.8]} 19...
Qd7 {[%clk 0:01:32.1]} 20. f5 {[%clk 0:01:17.3]} 20... Rab8 {[%clk 0:01:18.4]}
21. fxg6 {[%clk 0:01:12.5]} 21... hxg6 {[%clk 0:01:18.2]} 22. Ne5 {[%clk
0:01:03.8]} 22... Qd6 {[%clk 0:01:18.4]} 23. Qg3 {[%clk 0:01:04.2]} 23... Rbd8
{[%clk 0:01:03.3]} 24. h4 {[%clk 0:00:48.6]} 24... c5 {[%clk 0:01:02.5]} 25.
dxc6 {[%clk 0:00:36.4]} 25... Bxc6 {[%clk 0:01:02.5]} 26. Rd3 {[%clk 0:00:30.5]}
26... Bxe4 {[%clk 0:01:01.4]} 27. Rdd1 {[%clk 0:00:19.4]} 27... Bc2 {[%clk
0:00:41.4]} 28. Rc1 {[%clk 0:00:03]} 28... Qxd4+ {[%clk 0:00:41.2]} 29. Qf2
{[%clk 0:00:02.8]} 29... Bxe5 {[%clk 0:00:26.4]} 30. Rxc2 {[%clk 0:00:03.4]}
30... Qxa4 {[%clk 0:00:26]} 31. Qf3 {[%clk 0:00:02.4]} 31... Qxc2 {[%clk
0:00:24.6]} 0-1

[Event "*** Titled Tuesday Blitz"]
[Site "Chess.com"]
[Date "2019.08.06"]
[Round "6"]
[White "Keaton87"]
[Black "gena217"]
[Result "0-1"]
[WhiteElo "2636"]
[BlackElo "2923"]
[TimeControl "180+2"]
[EndTime "14:22:20 PDT"]
[Termination "gena217 won by resignation"]

1. Nf3 {[%clk 0:03:01.9]} 1... d5 {[%clk 0:02:59.4]} 2. e3 {[%clk 0:03:02.9]}
2... Nf6 {[%clk 0:02:56.6]} 3. c4 {[%clk 0:03:04]} 3... e6 {[%clk 0:02:50]} 4.
b3 {[%clk 0:03:03.8]} 4... Bd6 {[%clk 0:02:39.2]} 5. Bb2 {[%clk 0:03:04]} 5...
O-O {[%clk 0:02:40.8]} 6. Nc3 {[%clk 0:02:53.8]} 6... c5 {[%clk 0:02:40.7]} 7.
cxd5 {[%clk 0:02:51.7]} 7... exd5 {[%clk 0:02:41]} 8. d4 {[%clk 0:02:52.9]} 8...
Nc6 {[%clk 0:02:40.9]} 9. dxc5 {[%clk 0:02:50.5]} 9... Bxc5 {[%clk 0:02:42.8]}
10. Be2 {[%clk 0:02:51.1]} 10... Re8 {[%clk 0:02:39.2]} 11. O-O {[%clk
0:02:51.8]} 11... Bd6 {[%clk 0:02:38.8]} 12. Nb5 {[%clk 0:02:49.7]} 12... Bb8
{[%clk 0:02:38.7]} 13. Rc1 {[%clk 0:02:48.1]} 13... a6 {[%clk 0:02:35.6]} 14.
Nbd4 {[%clk 0:02:47.4]} 14... Qd6 {[%clk 0:02:36.5]} 15. g3 {[%clk 0:02:40.9]}
15... Bh3 {[%clk 0:02:34.2]} 16. Re1 {[%clk 0:02:41.6]} 16... Ba7 {[%clk
0:02:25.7]} 17. Qc2 {[%clk 0:02:21.4]} 17... Rac8 {[%clk 0:02:10.9]} 18. Qb1
{[%clk 0:02:16.1]} 18... Ne4 {[%clk 0:02:09.8]} 19. Qa1 {[%clk 0:02:11.8]} 19...
Qh6 {[%clk 0:02:01.5]} 20. Nxc6 {[%clk 0:01:35.6]} 20... bxc6 {[%clk 0:02:03.4]}
21. Bd4 {[%clk 0:01:29.4]} 21... c5 {[%clk 0:01:48]} 22. Be5 {[%clk 0:01:28.3]}
22... f6 {[%clk 0:01:32.2]} 23. Bf4 {[%clk 0:01:05]} 23... g5 {[%clk 0:01:33]}
24. Bxa6 {[%clk 0:01:05.5]} 24... gxf4 {[%clk 0:01:33.8]} 25. Bxc8 {[%clk
0:01:05.4]} 25... fxg3 {[%clk 0:01:35.4]} 26. Bxh3 {[%clk 0:00:49.7]} 26...
gxf2+ {[%clk 0:01:36]} 27. Kg2 {[%clk 0:00:51]} 27... fxe1=N+ {[%clk 0:01:29.9]}
28. Rxe1 {[%clk 0:00:46.6]} 28... Kf7 {[%clk 0:01:30]} 29. Ng1 {[%clk
0:00:14.5]} 29... Rg8+ {[%clk 0:01:25.7]} 30. Kf1 {[%clk 0:00:10.6]} 30... c4
{[%clk 0:01:19.6]} 31. Bg2 {[%clk 0:00:09.9]} 31... Bxe3 {[%clk 0:01:18.6]} 32.
Bxe4 {[%clk 0:00:10.5]} 32... Rxg1+ {[%clk 0:01:19]} 33. Ke2 {[%clk 0:00:11]}
33... Rxe1+ {[%clk 0:01:08.6]} 34. Qxe1 {[%clk 0:00:10.1]} 34... dxe4 {[%clk
0:01:10.1]} 35. bxc4 {[%clk 0:00:09]} 35... Bf4 {[%clk 0:01:07.3]} 36. Qa5
{[%clk 0:00:07.3]} 36... Qxh2+ {[%clk 0:01:07.8]} 37. Kf1 {[%clk 0:00:08.6]}
37... Qh3+ {[%clk 0:00:59.9]} 38. Ke2 {[%clk 0:00:09.1]} 38... Qd3+ {[%clk
0:00:54.3]} 39. Kf2 {[%clk 0:00:09.4]} 39... Bg3+ {[%clk 0:00:55]} 40. Kg2
{[%clk 0:00:10.2]} 40... Qf3+ {[%clk 0:00:56.6]} 41. Kh3 {[%clk 0:00:11.2]}
41... Bf4+ {[%clk 0:00:56.9]} 0-1

[Event "*** Titled Tuesday Blitz"]
[Site "Chess.com"]
[Date "2019.08.06"]
[Round "6"]
[White "jposthuma"]
[Black "Eltarolo"]
[Result "1-0"]
[WhiteElo "2424"]
[BlackElo "2314"]
[TimeControl "180+2"]
[EndTime "14:22:24 PDT"]
[Termination "jposthuma won by checkmate"]

1. d4 {[%clk 0:03:01.9]} 1... d5 {[%clk 0:03:00.6]} 2. c4 {[%clk 0:03:03]} 2...
c6 {[%clk 0:03:01.7]} 3. Nf3 {[%clk 0:03:04.1]} 3... Nf6 {[%clk 0:03:03.1]} 4.
g3 {[%clk 0:03:05.4]} 4... dxc4 {[%clk 0:03:02.4]} 5. Bg2 {[%clk 0:03:06.5]}
5... Nbd7 {[%clk 0:02:59]} 6. O-O {[%clk 0:03:07.4]} 6... Nb6 {[%clk 0:02:56.2]}
7. Nc3 {[%clk 0:03:06.7]} 7... Bg4 {[%clk 0:02:55.5]} 8. Ne5 {[%clk 0:03:06.2]}
8... e6 {[%clk 0:02:54.9]} 9. Nxg4 {[%clk 0:03:02.4]} 9... Nxg4 {[%clk 0:02:56]}
10. e4 {[%clk 0:03:03.7]} 10... Nf6 {[%clk 0:02:57.2]} 11. f4 {[%clk 0:02:56.6]}
11... Bb4 {[%clk 0:02:56.4]} 12. f5 {[%clk 0:02:53.1]} 12... exf5 {[%clk
0:02:46.8]} 13. Rxf5 {[%clk 0:02:55]} 13... O-O {[%clk 0:02:40.1]} 14. Bg5
{[%clk 0:02:52.4]} 14... Be7 {[%clk 0:02:41]} 15. Bxf6 {[%clk 0:02:28.5]} 15...
Bxf6 {[%clk 0:02:41.3]} 16. e5 {[%clk 0:02:28.7]} 16... Bg5 {[%clk 0:02:37.9]}
17. Kh1 {[%clk 0:02:05]} 17... Nd5 {[%clk 0:02:33.3]} 18. Qg4 {[%clk 0:01:54.7]}
18... Bh6 {[%clk 0:02:25.1]} 19. Bxd5 {[%clk 0:01:25.4]} 19... cxd5 {[%clk
0:02:27]} 20. Qf3 {[%clk 0:01:13]} 20... Qb6 {[%clk 0:02:23]} 21. Nxd5 {[%clk
0:01:09.5]} 21... Qxd4 {[%clk 0:02:18.8]} 22. Rf1 {[%clk 0:00:53.3]} 22... Qd3
{[%clk 0:02:03.2]} 23. Ne7+ {[%clk 0:00:40]} 23... Kh8 {[%clk 0:02:02.8]} 24.
Qf2 {[%clk 0:00:20.3]} 24... Qe4+ {[%clk 0:01:59.3]} 25. Qf3 {[%clk 0:00:18.9]}
25... Qxf3+ {[%clk 0:01:38.4]} 26. R1xf3 {[%clk 0:00:19.9]} 26... f6 {[%clk
0:01:32.7]} 27. exf6 {[%clk 0:00:20.5]} 27... gxf6 {[%clk 0:01:33.8]} 28. Rxf6
{[%clk 0:00:19.8]} 28... Rxf6 {[%clk 0:01:28.3]} 29. Rxf6 {[%clk 0:00:21.7]}
29... Bg7 {[%clk 0:01:14.3]} 30. Rf7 {[%clk 0:00:18.2]} 30... Bxb2 {[%clk
0:01:05.7]} 31. Nd5 {[%clk 0:00:19.2]} 31... Rd8 {[%clk 0:01:00.3]} 32. Rxb7
{[%clk 0:00:16.9]} 32... c3 {[%clk 0:00:58.9]} 33. Nf6 {[%clk 0:00:16.9]} 33...
Rd1+ {[%clk 0:00:25.2]} 34. Kg2 {[%clk 0:00:17.3]} 34... Rd2+ {[%clk 0:00:26.7]}
35. Kh3 {[%clk 0:00:18.3]} 35... Rd7 {[%clk 0:00:27]} 36. Rxd7 {[%clk
0:00:18.1]} 36... c2 {[%clk 0:00:25.6]} 37. Rxh7# {[%clk 0:00:18.8]} 1-0

[Event "*** Titled Tuesday Blitz"]
[Site "Chess.com"]
[Date "2019.08.06"]
[Round "6"]
[White "GrandGlacier"]
[Black "Irochka83"]
[Result "0-1"]
[WhiteElo "2431"]
[BlackElo "2321"]
[TimeControl "180+2"]
[EndTime "14:22:34 PDT"]
[Termination "Irochka83 won by checkmate"]

1. b3 {[%clk 0:03:01.9]} 1... e5 {[%clk 0:02:59.4]} 2. Bb2 {[%clk 0:03:03]} 2...
Nc6 {[%clk 0:03:00.2]} 3. e3 {[%clk 0:03:04.1]} 3... Nf6 {[%clk 0:02:59.1]} 4.
Bb5 {[%clk 0:03:05.1]} 4... Bd6 {[%clk 0:02:59.6]} 5. Na3 {[%clk 0:03:06.2]}
5... a6 {[%clk 0:02:59.6]} 6. Bxc6 {[%clk 0:03:04.3]} 6... dxc6 {[%clk
0:03:00.2]} 7. Nc4 {[%clk 0:03:05.5]} 7... Qe7 {[%clk 0:02:58.6]} 8. Nxd6+
{[%clk 0:03:03.1]} 8... cxd6 {[%clk 0:02:59.1]} 9. d4 {[%clk 0:03:03.6]} 9... e4
{[%clk 0:02:50.9]} 10. c4 {[%clk 0:03:02.5]} 10... O-O {[%clk 0:02:46.5]} 11. d5
{[%clk 0:02:57.8]} 11... c5 {[%clk 0:02:22.7]} 12. Ne2 {[%clk 0:02:53.2]} 12...
Ng4 {[%clk 0:02:17.7]} 13. Ng3 {[%clk 0:02:49.8]} 13... f5 {[%clk 0:02:14.6]}
14. Qc2 {[%clk 0:02:27.4]} 14... Bd7 {[%clk 0:01:44.1]} 15. O-O-O {[%clk
0:02:24]} 15... b5 {[%clk 0:01:43.7]} 16. Nh5 {[%clk 0:02:14.3]} 16... Rf7
{[%clk 0:01:16]} 17. h3 {[%clk 0:01:36.2]} 17... Ne5 {[%clk 0:01:15.3]} 18. Rhf1
{[%clk 0:01:27]} 18... Rb8 {[%clk 0:01:12.5]} 19. f4 {[%clk 0:01:18.6]} 19...
exf3 {[%clk 0:00:54.1]} 20. gxf3 {[%clk 0:01:18.6]} 20... bxc4 {[%clk
0:00:55.7]} 21. bxc4 {[%clk 0:01:12.8]} 21... Rb4 {[%clk 0:00:55.4]} 22. Rd3
{[%clk 0:01:01.2]} 22... Ba4 {[%clk 0:00:47.4]} 23. Qe2 {[%clk 0:00:48.7]} 23...
Nxc4 {[%clk 0:00:25.9]} 24. Bc3 {[%clk 0:00:44.6]} 24... Qb7 {[%clk 0:00:20.5]}
25. Bxb4 {[%clk 0:00:32.2]} 25... Qxb4 {[%clk 0:00:22.4]} 26. a3 {[%clk
0:00:33.2]} 26... Qb5 {[%clk 0:00:17.2]} 27. Rc3 {[%clk 0:00:32]} 27... Rb7
{[%clk 0:00:13.6]} 28. Nf6+ {[%clk 0:00:12.5]} 28... gxf6 {[%clk 0:00:10.8]} 29.
Rxc4 {[%clk 0:00:11.6]} 29... Qb1+ {[%clk 0:00:10.4]} 30. Kd2 {[%clk 0:00:12.8]}
30... Rb2+ {[%clk 0:00:09.4]} 31. Kc3 {[%clk 0:00:14]} 31... Rb3+ {[%clk
0:00:09]} 32. Kd2 {[%clk 0:00:14]} 32... Rb2+ {[%clk 0:00:05.2]} 33. Kc3 {[%clk
0:00:14.8]} 33... Rc2+ {[%clk 0:00:05.4]} 34. Qxc2 {[%clk 0:00:15.3]} 34...
Qxc2# {[%clk 0:00:06.4]} 0-1